[Event "52nd Iran-ch Men Final 2019"]
[Site "Bushehr"]
[Date "2019.01.24"]
[Round "1.2"]
[White "Daghli, Arash"]
[Black "Gholami Orimi, Mahdi"]
[Result "1/2-1/2"]
[ECO "D37"]
[WhiteElo "2366"]
[BlackElo "2377"]
[Annotator "NA"]
[PlyCount "54"]
[EventDate "2019.01.24"]
[EventType "tourn"]
[EventCountry "IRI"]
[SourceTitle "playchess.com"]
[Source "ChessBase"]
[SourceQuality "1"]
[TimeControl "40/5400+30:1800+30"]

1. Nf3 {[%emt 0:00:00]} Nf6 {[%emt 0:00:11]} 2. c4 {[%emt 0:00:00]} e6 {[%emt 0:00:19]} 3. Nc3 {[%emt 0:00:00]} d5 {[%emt 0:01:39]} 4. d4 {[%emt 0:00:06]} a6 {[%emt 0:00:33]} 5. cxd5 {[%emt 0:00:32]} exd5 {[%emt 0:00:03]} 6. Bg5 {[%emt 0:00:15]} c6 {[%emt 0:04:34]} 7. e3 {[%emt 0:00:11]} Be6 {[%emt 0:00:10]} 8. Bd3 {[%emt 0:04:19]} Nbd7 {[%emt 0:00:23]} 9. Qc2 {[%emt 0:01:33]} Bd6 {[%emt 0:00:30]} 10. O-O {[%emt 0:06:23]} Qc7 {[%emt 0:02:25]} 11. e4 {[%emt 0:00:30]} dxe4 {[%emt 0:05:23]} 12. Nxe4 {[%emt 0:12:46]} Nxe4 {[%emt 0:01:03]} 13. Bxe4 {[%emt 0:00:09]} h6 {[%emt 0:00:20]} 14. Bh4 {[%emt 0:02:28]} O-O {[%emt 0:01:31]} 15. Rfe1 {[%emt 0:04:58]} Rfe8 {[%emt 0:04:27]} 16. a3 {[%emt 0:00:36]} Nb6 {[%emt 0:09:36]} 17. Ne5 {[%emt 0:13:58]} Bd5 {[%emt 0:03:55]} 18. Bg3 {[%emt 0:20:12]} Bxe4 {[%emt 0:10:49]} 19. Rxe4 {[%emt 0:02:06]} Re7 {[%emt 0:02:22]} 20. Rae1 {[%emt 0:02:14]} Rae8 {[%emt 0:02:54]} 21. Nf3 {[%emt 0:06:52]} Nd5 {[%emt 0:09:58]} 22. Rxe7 {[%emt 0:02:30]} Rxe7 {[%emt 0:00:40]} 23. Rxe7 {[%emt 0:01:55]} Qxe7 {[%emt 0:00:32]} 24. Qf5 {[%emt 0:04:31]} Bxg3 {[%emt 0:05:13]} 25. hxg3 {[%emt 0:00:15]} Qe8 {[%emt 0:00:32]} 26. Ne5 {[%emt 0:02:13]} Nc7 {[%emt 0:02:53]} 27. Nd3 {[%emt 0:04:51]} Ne6 {[%emt 0:00:30]} 1/2-1/2

[Event "52nd Iran-ch Men Final 2019"]
[Site "Bushehr"]
[Date "2019.01.26"]
[Round "3"]
[White "Mosadeghpour, Masoud"]
[Black "Gholami Orimi, Mahdi"]
[Result "1-0"]
[ECO "C50"]
[WhiteElo "2517"]
[BlackElo "2377"]
[Annotator "ChessBase"]
[PlyCount "113"]
[EventDate "2019.01.24"]
[EventType "tourn"]
[EventCountry "IRI"]
[SourceTitle "playchess.com"]
[Source "ChessBase"]
[SourceQuality "1"]
[TimeControl "40/5400+30:1800+30"]

1. e4 {[%emt 0:00:23]} e5 {[%emt 0:00:00]} 2. Nf3 {[%emt 0:00:10]} Nc6 {[%emt 0:00:00]} 3. Bc4 {[%emt 0:00:17]} Bc5 {[%emt 0:00:00]} 4. O-O {[%emt 0:00:35]} Nf6 {[%emt 0:00:26]} 5. d3 {[%emt 0:00:23]} d6 {[%emt 0:00:15]} 6. c3 {[%emt 0:00:07]} a6 {[%emt 0:00:05]} 7. a4 {[%emt 0:00:13]} h6 {[%emt 0:01:04]} 8. Re1 {[%emt 0:00:44]} Ba7 {[%emt 0:00:10]} 9. b4 {[%emt 0:00:39]} O-O {[%emt 0:00:38]} 10. Nbd2 {[%emt 0:00:07]} Ne7 {[%emt 0:00:38]} 11. h3 {[%emt 0:00:46]} Ng6 {[%emt 0:00:11]} 12. d4 {[%emt 0:00:11]} Re8 {[%emt 0:06:45]} 13. b5 exd4 {[%emt 0:12:55]} 14. cxd4 {[%emt 0:01:28]} d5 {[%emt 0:06:19]} 15. exd5 {[%emt 0:00:24]} Rxe1+ {[%emt 0:04:22]} 16. Qxe1 {[%emt 0:00:01]} Nxd5 {[%emt 0:04:14]} 17. Ne4 {[%emt 0:01:07]} axb5 {[%emt 0:16:48]} 18. axb5 {[%emt 0:00:22]} Be6 {[%emt 0:04:42]} 19. Qa5 {[%emt 0:04:10]} Nf8 {[%emt 0:04:25]} 20. Nc5 {[%emt 0:10:03]} b6 {[%emt 0:02:19]} 21. Nxe6 {[%emt 0:00:31]} bxa5 {[%emt 0:00:10]} 22. Nxd8 {[%emt 0:00:06]} Rxd8 {[%emt 0:00:24]} 23. Rxa5 {[%emt 0:02:49]} Bxd4 {[%emt 0:03:22]} 24. Nxd4 {[%emt 0:03:12]} Nb6 {[%emt 0:00:12]} 25. Bxf7+ {[%emt 0:00:17]} Kxf7 {[%emt 0:00:02]} 26. Be3 {[%emt 0:00:22]} Nd5 {[%emt 0:14:08]} 27. Ra3 {[%emt 0:10:02]} Rb8 {[%emt 0:05:25]} 28. Rb3 {[%emt 0:03:28]} Ra8 {[%emt 0:01:08]} 29. Nc6 {[%emt 0:01:19]} Ne6 {[%emt 0:00:46]} 30. Rd3 {[%emt 0:01:20]} Ra1+ {[%emt 0:01:46]} 31. Kh2 {[%emt 0:00:12]} Nxe3 {[%emt 0:01:40]} 32. Rxe3 {[%emt 0:05:45]} Rb1 {[%emt 0:00:35]} 33. h4 {[%emt 0:00:11]} Rb2 {[%emt 0:02:37]} 34. Kg3 {[%emt 0:04:30]} Rb1 {[%emt 0:00:53]} 35. Rf3+ {[%emt 0:06:06]} Kg6 {[%emt 0:01:33]} 36. Re3 {[%emt 0:02:30]} Kf7 {[%emt 0:00:03]} 37. Kg4 {[%emt 0:01:58]} Rb2 {[%emt 0:04:32]} 38. Rf3+ {[%emt 0:00:04]} Kg8 {[%emt 0:00:27]} 39. Kf5 {[%emt 0:07:09]} Nf8 {[%emt 0:00:53]} 40. Ne7+ {[%emt 0:00:00]} Kh7 {[%emt 0:00:00]} 41. Kg4 {[%emt 0:28:47]} Ne6 {[%emt 0:11:32]} 42. Rf5 {[%emt 0:03:02]} Nd4 {[%emt 0:01:26]} 43. Rf4 {[%emt 0:03:06]} Ne6 {[%emt 0:03:43]} 44. Re4 {[%emt 0:01:58]} Nf8 {[%emt 0:05:12]} 45. Nd5 {[%emt 0:12:38]} Rxf2 {[%emt 0:03:08]} 46. g3 {[%emt 0:02:32]} Rf7 {[%emt 0:02:14]} 47. Rf4 {[%emt 0:08:14]} Rd7 {[%emt 0:00:29]} 48. Nxc7 {[%emt 0:00:40]} Ng6 {[%emt 0:05:33]} 49. Ne6 {[%emt 0:01:06]} h5+ {[%emt 0:02:21]} 50. Kg5 {[%emt 0:00:38]} Rd3 {[%emt 0:01:30]} 51. Rf7 {[%emt 0:02:29]} Rxg3+ {[%emt 0:00:45]} 52. Kxh5 {[%emt 0:00:02]} Ne5 {[%emt 0:00:34]} 53. Ng5+ {[%emt 0:00:18]} Kg8 {[%emt 0:00:39]} 54. Re7 {[%emt 0:00:28]} g6+ {[%emt 0:00:29]} 55. Kh6 {[%emt 0:00:02]} Ng4+ {[%emt 0:00:31]} 56. Kxg6 {[%emt 0:00:04]} Kf8 {[%emt 0:00:12]} 57. Re4 {[%emt 0:00:56]} 1-0

[Event "52nd Iran-ch Men Final 2019"]
[Site "Bushehr"]
[Date "2019.01.26"]
[Round "3"]
[White "Darini, Pouria"]
[Black "Gholami, Aryan"]
[Result "1/2-1/2"]
[ECO "B10"]
[WhiteElo "2475"]
[BlackElo "2488"]
[Annotator "ChessBase"]
[PlyCount "29"]
[EventDate "2019.01.24"]
[EventType "tourn"]
[EventCountry "IRI"]
[SourceTitle "playchess.com"]
[Source "ChessBase"]
[SourceQuality "1"]
[TimeControl "40/5400+30:1800+30"]

1. e4 {[%emt 0:01:04]} c6 {[%emt 0:00:00]} 2. Nc3 {[%emt 0:00:58]} d5 {[%emt 0:00:00]} 3. Nf3 {[%emt 0:00:02]} dxe4 {[%emt 0:00:03]} 4. Nxe4 {[%emt 0:00:05]} Nf6 {[%emt 0:00:07]} 5. Qe2 {[%emt 0:00:14]} Nxe4 {[%emt 0:00:07]} 6. Qxe4 {[%emt 0:00:04]} Qd5 {[%emt 0:00:06]} 7. Qh4 {[%emt 0:00:17]} Qe6+ {[%emt 0:00:07]} 8. Be2 {[%emt 0:00:06]} Qg6 {[%emt 0:00:03]} 9. O-O {[%emt 0:01:06]} Qxc2 {[%emt 0:00:13]} 10. Bc4 {[%emt 0:05:20]} Qf5 {[%emt 0:03:03]} 11. d4 Nd7 {[%emt 0:17:09]} 12. Re1 {[%emt 0:48:43]} Nb6 {[%emt 0:02:57]} 13. Bb3 {[%emt 0:00:01]} Nd5 {[%emt 0:01:13]} 14. Ne5 {[%emt 0:00:50]} f6 {[%emt 0:09:04]} 15. Nc4 {[%emt 0:02:32]} 1/2-1/2

[Event "52nd Iran-ch Men Final 2019"]
[Site "Bushehr"]
[Date "2019.01.26"]
[Round "3"]
[White "Khodashenas, Mersad"]
[Black "Moradi, Amirmasoud"]
[Result "1-0"]
[ECO "C96"]
[WhiteElo "2455"]
[BlackElo "2321"]
[Annotator "ChessBase"]
[PlyCount "129"]
[EventDate "2019.01.24"]
[EventType "tourn"]
[EventCountry "IRI"]
[SourceTitle "playchess.com"]
[Source "ChessBase"]
[SourceQuality "1"]
[TimeControl "40/5400+30:1800+30"]

1. e4 {[%emt 0:00:00]} e5 {[%emt 0:00:45]} 2. Nf3 {[%emt 0:00:41]} Nc6 {[%emt 0:00:10]} 3. Bb5 {[%emt 0:00:02]} a6 {[%emt 0:01:12]} 4. Ba4 {[%emt 0:00:02]} Nf6 {[%emt 0:05:36]} 5. O-O {[%emt 0:00:37]} Be7 {[%emt 0:01:38]} 6. Re1 {[%emt 0:00:15]} b5 {[%emt 0:01:10]} 7. Bb3 {[%emt 0:00:02]} O-O {[%emt 0:00:33]} 8. c3 {[%emt 0:00:55]} d6 {[%emt 0:04:22]} 9. h3 {[%emt 0:00:11]} Na5 {[%emt 0:00:06]} 10. Bc2 {[%emt 0:00:06]} c5 {[%emt 0:00:00]} 11. d4 {[%emt 0:00:12]} Nd7 12. Nbd2 {[%emt 0:07:51]} exd4 {[%emt 0:02:18]} 13. cxd4 {[%emt 0:00:17]} Nc6 {[%emt 0:00:09]} 14. d5 {[%emt 0:05:52]} Nce5 {[%emt 0:01:46]} 15. Nxe5 {[%emt 0:00:03]} Nxe5 {[%emt 0:00:09]} 16. a4 {[%emt 0:00:01]} Rb8 {[%emt 0:11:31]} 17. axb5 {[%emt 0:00:15]} axb5 {[%emt 0:00:08]} 18. f4 {[%emt 0:00:17]} Ng6 {[%emt 0:00:09]} 19. Rf1 {[%emt 0:01:02]} f5 {[%emt 0:26:16]} 20. exf5 {[%emt 0:00:32]} Bxf5 {[%emt 0:03:01]} 21. Bxf5 {[%emt 0:10:39]} Rxf5 {[%emt 0:00:02]} 22. Ne4 {[%emt 0:00:13]} Ra8 {[%emt 0:08:25]} 23. g4 {[%emt 0:17:45]} Rxa1 {[%emt 0:18:04]} 24. gxf5 {[%emt 0:00:12]} Nh4 {[%emt 0:00:58]} 25. f6 {[%emt 0:15:51]} Bxf6 {[%emt 0:00:14]} 26. Qg4 {[%emt 0:00:10]} Qe7 {[%emt 0:11:38]} 27. Re1 {[%emt 0:16:58]} Rxc1 {[%emt 0:02:12]} 28. Nxf6+ {[%emt 0:03:12]} Qxf6 {[%emt 0:00:21]} 29. Qc8+ {[%emt 0:00:22]} Qf8 {[%emt 0:00:36]} 30. Qxf8+ {[%emt 0:05:51]} Kxf8 {[%emt 0:00:01]} 31. Rxc1 {[%emt 0:00:04]} b4 {[%emt 0:00:27]} 32. Kf2 {[%emt 0:01:23]} Kf7 {[%emt 0:00:25]} 33. Re1 {[%emt 0:04:16]} g6 {[%emt 0:00:21]} 34. Ra1 {[%emt 0:01:31]} Nf5 {[%emt 0:01:38]} 35. Ra7+ {[%emt 0:00:15]} Kg8 {[%emt 0:00:06]} 36. Ke2 {[%emt 0:02:19]} h5 {[%emt 0:00:09]} 37. Kd3 {[%emt 0:00:08]} Kf8 {[%emt 0:00:04]} 38. Ra1 {[%emt 0:02:21]} Kf7 {[%emt 0:00:35]} 39. Re1 {[%emt 0:00:47]} Kf6 {[%emt 0:01:23]} 40. Re6+ {[%emt 0:00:00]} Kg7 {[%emt 0:00:00]} 41. Kc4 {[%emt 0:00:58]} Kf7 {[%emt 0:12:24]} 42. Re4 {[%emt 0:00:56]} Kf6 {[%emt 0:11:54]} 43. Re8 {[%emt 0:06:39]} Kf7 {[%emt 0:03:03]} 44. Re6 {[%emt 0:01:22]} Kg7 {[%emt 0:02:54]} 45. Re1 {[%emt 0:00:17]} Kf7 {[%emt 0:01:28]} 46. Kb5 {[%emt 0:04:17]} Ne7 {[%emt 0:00:24]} 47. Rd1 {[%emt 0:04:40]} Ke8 {[%emt 0:00:10]} 48. Rg1 {[%emt 0:05:50]} Kf7 {[%emt 0:01:23]} 49. Rg5 {[%emt 0:01:15]} Kf6 {[%emt 0:00:00]} 50. Kb6 {[%emt 0:01:35]} c4 {[%emt 0:01:25]} 51. Kc7 {[%emt 0:01:17]} Nf5 {[%emt 0:00:09]} 52. Rg1 {[%emt 0:01:08]} c3 {[%emt 0:01:20]} 53. bxc3 {[%emt 0:00:32]} bxc3 {[%emt 0:00:00]} 54. Rc1 {[%emt 0:00:18]} g5 {[%emt 0:00:57]} 55. fxg5+ {[%emt 0:00:09]} Kxg5 {[%emt 0:00:01]} 56. Rxc3 {[%emt 0:00:12]} Kf4 {[%emt 0:00:21]} 57. Kd7 {[%emt 0:04:33]} Ke5 {[%emt 0:00:26]} 58. Rd3 {[%emt 0:00:01]} Ke4 {[%emt 0:01:16]} 59. Rd1 {[%emt 0:00:35]} Ke5 {[%emt 0:00:14]} 60. Rd2 {[%emt 0:00:39]} h4 {[%emt 0:00:49]} 61. Rd1 {[%emt 0:00:55]} Nh6 {[%emt 0:00:34]} 62. Kc6 {[%emt 0:01:02]} Nf5 {[%emt 0:00:29]} 63. Re1+ {[%emt 0:00:36]} Kd4 {[%emt 0:00:01]} 64. Rf1 {[%emt 0:00:58]} Ne3 {[%emt 0:00:48]} 65. Rf4+ {[%emt 0:00:15]} 1-0

[Event "52nd Iran-ch Men Final 2019"]
[Site "Bushehr"]
[Date "2019.01.26"]
[Round "3"]
[White "Daghli, Arash"]
[Black "Tahbaz, Arash"]
[Result "1-0"]
[ECO "B06"]
[WhiteElo "2366"]
[BlackElo "2468"]
[Annotator "ChessBase"]
[PlyCount "55"]
[EventDate "2019.01.24"]
[EventType "tourn"]
[EventCountry "IRI"]
[SourceTitle "playchess.com"]
[Source "ChessBase"]
[SourceQuality "1"]
[TimeControl "40/5400+30:1800+30"]

1. e4 g6 2. d4 Bg7 3. Nc3 c6 4. Nf3 b5 5. e5 d5 6. Bd3 Nh6 7. Bf4 f6 8. O-O O-O 9. h3 Bf5 10. Bxh6 Bxh6 11. Bxf5 gxf5 12. e6 Bg5 13. Qd3 f4 14. a4 b4 15. Ne2 Qd6 16. Qf5 Na6 17. Rfe1 Kh8 18. h4 Bh6 19. Qh5 Kg7 20. g4 Rg8 21. g5 fxg5 22. hxg5 Bxg5 23. Nxg5 Kf6 24. Kf1 Rg6 25. Nf3 Rf8 26. Qe5+ Qxe5 27. Nxe5 f3 28. Ng3 1-0

[Event "52nd Iran-ch Men Final 2019"]
[Site "Bushehr"]
[Date "2019.01.29"]
[Round "6"]
[White "Gholami, Aryan"]
[Black "Moradi, Amirmasoud"]
[Result "1-0"]
[ECO "A05"]
[WhiteElo "2488"]
[BlackElo "2321"]
[Annotator "RC"]
[PlyCount "117"]
[EventDate "2019.01.24"]
[EventType "tourn"]
[EventCountry "IRI"]
[SourceTitle "playchess.com"]
[Source "ChessBase"]
[SourceQuality "1"]
[TimeControl "40/5400+30:1800+30"]

1. Nf3 {[%emt 0:00:05]} Nf6 {[%emt 0:00:00]} 2. d4 {[%emt 0:00:31]} e6 {[%emt 0:00:47]} 3. Bf4 {[%emt 0:00:34]} c5 {[%emt 0:07:14]} 4. e3 {[%emt 0:00:17]} Nc6 {[%emt 0:01:16]} 5. Nbd2 {[%emt 0:05:36]} Be7 {[%emt 0:03:11]} 6. c3 {[%emt 0:03:51]} Nh5 {[%emt 0:04:17]} 7. Bg3 {[%emt 0:00:17]} b6 {[%emt 0:05:15]} 8. Ne5 {[%emt 0:09:30]} Nxg3 {[%emt 0:03:32]} 9. Nxc6 {[%emt 0:01:12]} dxc6 {[%emt 0:06:07]} 10. hxg3 {[%emt 0:00:13]} cxd4 {[%emt 0:06:58]} 11. exd4 {[%emt 0:00:37]} Qc7 {[%emt 0:14:04]} 12. Bd3 {[%emt 0:07:21]} Bb7 {[%emt 0:00:05]} 13. Qf3 {[%emt 0:02:31]} h6 {[%emt 0:04:46]} 14. Qg4 {[%emt 0:08:55]} Bf8 {[%emt 0:14:48]} 15. a4 {[%emt 0:04:59]} a6 {[%emt 0:03:57]} 16. a5 {[%emt 0:07:41]} b5 {[%emt 0:02:04]} 17. b4 {[%emt 0:01:44]} g6 {[%emt 0:03:01]} 18. Ne4 O-O-O {[%emt 0:02:18]} 19. Nc5 {[%emt 0:14:38]} Bxc5 {[%emt 0:03:19]} 20. bxc5 {[%emt 0:00:06]} h5 {[%emt 0:00:06]} 21. Qh4 {[%emt 0:01:18]} e5 {[%emt 0:00:59]} 22. O-O {[%emt 0:00:18]} exd4 {[%emt 0:00:03]} 23. cxd4 {[%emt 0:00:06]} Rd7 {[%emt 0:04:49]} 24. Rfd1 {[%emt 0:01:43]} Qd8 {[%emt 0:01:37]} 25. Qf4 {[%emt 0:00:07]} h4 {[%emt 0:00:37]} 26. Be4 {[%emt 0:02:26]} hxg3 {[%emt 0:01:20]} 27. fxg3 {[%emt 0:00:19]} f5 {[%emt 0:03:02]} 28. Bf3 {[%emt 0:00:08]} g5 {[%emt 0:01:55]} 29. Qxf5 {[%emt 0:00:40]} Kb8 {[%emt 0:00:01]} 30. Rac1 {[%emt 0:02:54]} Ka7 {[%emt 0:02:13]} 31. d5 {[%emt 0:00:31]} Bc8 {[%emt 0:00:27]} 32. Qe5 {[%emt 0:05:04]} Re8 {[%emt 0:00:36]} 33. Qc3 {[%emt 0:01:48]} g4 {[%emt 0:00:40]} 34. dxc6 {[%emt 0:00:27]} Rxd1+ {[%emt 0:00:16]} 35. Rxd1 {[%emt 0:00:02]} Qe7 {[%emt 0:00:48]} 36. Bd5 {[%emt 0:00:23]} Qh7 {[%emt 0:00:48]} 37. Rf1 {[%emt 0:02:06]} Re7 {[%emt 0:00:02]} 38. c7 {[%emt 0:13:42]} Qg7 {[%emt 0:00:01]} 39. Qd2 {[%emt 0:01:21]} Qe5 {[%emt 0:01:16]} 40. c6 {[%emt 0:00:00]} Rxc7 {[%emt 0:00:00]} 41. Re1 {[%emt 0:03:45]} Qf6 {[%emt 0:18:26]} 42. Qe3+ Ka8 {[%emt 0:00:50]} 43. Qc5 {[%emt 0:17:03]} Qd8 {[%emt 0:03:06]} 44. Re5 {[%emt 0:03:50]} Qh8 {[%emt 0:02:42]} 45. Qd6 {[%emt 0:00:32]} Qh7 {[%emt 0:02:22]} 46. Be4 {[%emt 0:00:23]} Qf7 {[%emt 0:01:53]} 47. Kh2 {[%emt 0:01:21]} Kb8 {[%emt 0:01:25]} 48. Qc5 {[%emt 0:00:24]} Ka8 {[%emt 0:01:45]} 49. Qb6 {[%emt 0:01:47]} Qf8 {[%emt 0:02:18]} 50. Rh5 {[%emt 0:01:13]} Qe8 {[%emt 0:00:14]} 51. Rh6 {[%emt 0:01:50]} Qf8 {[%emt 0:00:29]} 52. Rh4 {[%emt 0:00:17]} Qd8 {[%emt 0:00:12]} 53. Qc5 {[%emt 0:01:19]} Qe7 {[%emt 0:00:03]} 54. Qd4 {[%emt 0:00:18]} Qg7 {[%emt 0:00:36]} 55. Qb6 {[%emt 0:00:43]} Qe5 {[%emt 0:00:05]} 56. Rh6 {[%emt 0:00:54]} b4 {[%emt 0:01:51]} 57. Qxb4 {[%emt 0:00:06]} Qb5 {[%emt 0:00:52]} 58. Qc3 {[%emt 0:00:41]} Qa4 {[%emt 0:00:18]} 59. Qe5 {[%emt 0:00:36]} 1-0

[Event "52nd Iran-ch Men Final 2019"]
[Site "Bushehr"]
[Date "2019.01.30"]
[Round "7"]
[White "Moradi, Amirmasoud"]
[Black "Gholami Orimi, Mahdi"]
[Result "0-1"]
[ECO "C77"]
[WhiteElo "2321"]
[BlackElo "2377"]
[Annotator "NA"]
[PlyCount "90"]
[EventDate "2019.01.24"]
[EventType "tourn"]
[EventCountry "IRI"]
[SourceTitle "playchess.com"]
[Source "ChessBase"]
[SourceQuality "1"]
[TimeControl "40/5400+30:1800+30"]

1. e4 {[%emt 0:01:13]} e5 {[%emt 0:00:00]} 2. Nf3 {[%emt 0:00:37]} Nc6 {[%emt 0:00:00]} 3. Bb5 {[%emt 0:02:14]} a6 {[%emt 0:00:09]} 4. Ba4 {[%emt 0:00:01]} Nf6 {[%emt 0:00:08]} 5. d4 {[%emt 0:04:47]} exd4 {[%emt 0:01:20]} 6. O-O {[%emt 0:00:20]} Be7 {[%emt 0:00:26]} 7. Re1 {[%emt 0:00:48]} b5 {[%emt 0:01:41]} 8. Bb3 {[%emt 0:00:55]} d6 {[%emt 0:00:09]} 9. c3 {[%emt 0:01:38]} dxc3 {[%emt 0:09:55]} 10. Nxc3 {[%emt 0:00:02]} O-O {[%emt 0:01:07]} 11. h3 {[%emt 0:17:05]} Bb7 {[%emt 0:11:14]} 12. Bf4 {[%emt 0:07:50]} Na5 {[%emt 0:08:11]} 13. Bc2 {[%emt 0:00:07]} Nc4 {[%emt 0:04:16]} 14. b3 {[%emt 0:07:26]} Nb6 $15 {[%emt 0:00:38]} 15. a4 {[%emt 0:16:02]} b4 {[%emt 0:03:16]} 16. Nb1 {[%emt 0:01:23]} a5 {[%emt 0:01:36]} 17. Nd4 {[%emt 0:02:22]} Re8 {[%emt 0:00:59]} 18. Nf5 {[%emt 0:01:26]} Bf8 {[%emt 0:00:27]} 19. Nd2 {[%emt 0:00:16]} Nbd7 {[%emt 0:01:36]} 20. g4 {[%emt 0:13:21]} Nc5 {[%emt 0:02:15]} 21. Qf3 {[%emt 0:08:14]} Ne6 {[%emt 0:06:12]} 22. Rad1 {[%emt 0:02:56]} Qc8 {[%emt 0:07:22]} 23. Nc4 {[%emt 0:03:16]} Nc5 {[%emt 0:03:01]} 24. Ng3 {[%emt 0:02:11]} d5 {[%emt 0:02:13]} 25. exd5 {[%emt 0:01:43]} Rxe1+ {[%emt 0:01:59]} 26. Rxe1 {[%emt 0:00:01]} Bxd5 {[%emt 0:00:30]} 27. Qd1 {[%emt 0:00:15]} Bxc4 {[%emt 0:02:16]} 28. bxc4 {[%emt 0:00:17]} Rb8 {[%emt 0:01:19]} 29. g5 {[%emt 0:02:30]} Ne8 {[%emt 0:01:11]} 30. Nf5 {[%emt 0:00:52]} b3 {[%emt 0:01:41]} 31. Bb1 {[%emt 0:00:02]} Ne6 {[%emt 0:05:04]} 32. Nh6+ {[%emt 0:01:43]} gxh6 33. Qd3 Bg7 {[%emt 0:01:53]} 34. Qxh7+ {[%emt 0:00:03]} Kf8 {[%emt 0:00:08]} 35. gxh6 {[%emt 0:00:33]} Bc3 {[%emt 0:01:19]} 36. Qd3 {[%emt 0:00:55]} Bf6 {[%emt 0:02:29]} 37. Be5 {[%emt 0:01:19]} Qd8 {[%emt 0:01:05]} 38. Qf5 {[%emt 0:00:56]} Qd2 {[%emt 0:03:31]} 39. Re3 {[%emt 0:00:56]} Bxe5 {[%emt 0:00:33]} 40. h7 {[%emt 0:00:00]} Bg7 {[%emt 0:00:00]} 41. Rxe6 {[%emt 0:05:42]} Qd1+ {[%emt 0:16:30]} 42. Kg2 {[%emt 0:10:33]} Nd6 {[%emt 0:01:30]} 43. Qf4 {[%emt 0:01:32]} Qxb1 {[%emt 0:01:39]} 44. c5 {[%emt 0:09:01]} Nf5 {[%emt 0:19:20]} 45. Re5 {[%emt 0:04:52]} Bxe5 {[%emt 0:00:45]} 0-1

[Event "52nd Iran-ch Men Final 2019"]
[Site "Bushehr"]
[Date "2019.02.01"]
[Round "9"]
[White "Moradi, Amirmasoud"]
[Black "Daghli, Arash"]
[Result "1/2-1/2"]
[ECO "E73"]
[WhiteElo "2321"]
[BlackElo "2366"]
[Annotator "NA"]
[PlyCount "105"]
[EventDate "2019.01.24"]
[EventType "tourn"]
[EventCountry "IRI"]
[SourceTitle "playchess.com"]
[Source "ChessBase"]
[SourceQuality "1"]
[TimeControl "40/5400+30:1800+30"]

{[%evp 8,105,54,51,32767,53,54,54,47,32767,69,49,51,74,66,61,89,93,95,98,32767,32767,32767,32767,32767,32767,91,119,118,125,149,132,129,105,137,133,126,76,77,75,74,80,32767,32767,32767,32767,32767,32767,82,83,32767,32767,82,50,56,0,0,32767,32767,6,32767,32767,32767,32767,32767,32767,32767,32767,32767,32767,32767,32767,32767,0,32767,32767,32767,32767,32767,32767,0,0,32767,0,32767,32767,32767,32767,32767,32767,32767,32767,32767,0,32767,32767,32767,32767,32767,0]} 1. d4 {[%emt 0:00:06]} Nf6 {[%emt 0:00:00]} 2. c4 {[%emt 0:00:30]} g6 {[%emt 0:00:14]} 3. Nc3 {[%emt 0:00:55]} Bg7 {[%emt 0:00:21]} 4. e4 {[%emt 0:00:08]} d6 {[%emt 0:00:21]} 5. Be2 {[%emt 0:00:07]} O-O {[%emt 0:01:28]} 6. Be3 {[%emt 0:00:24]} e5 {[%emt 0:00:57]} 7. d5 {[%emt 0:00:07]} Na6 {[%emt 0:00:21]} 8. g4 {[%emt 0:01:41]} Nc5 {[%emt 0:00:16]} 9. f3 $1 {[%emt 0:00:19]} h5 $146 {[%emt 0:00:52]} ({Predecessor:} 9... a5 10. Qd2 h5 11. g5 Nh7 {½-½ (36) Chabanon,J (2458)-Degraeve,J (2586) Agen 2016}) 10. g5 {[%emt 0:07:25]} Nh7 {[%emt 0:00:52]} 11. h4 {[%emt 0:12:07]} a5 {[%emt 0:04:41]} 12. Qd2 {[%emt 0:01:53] LiveBook: 18 Games} f6 {[%emt 0:02:25]} 13. Nh3 {[%emt 0:16:01]} a4 {[%emt 0:02:49] E73: King's Indian: Averbakh Variation without 6...c5} ({Predecessor:} 13... Bxh3 14. Rxh3 fxg5 15. hxg5 a4 {½-½ (36) Chabanon,J (2458)-Degraeve,J (2586) Agen 2016}) 14. O-O-O {[%emt 0:08:59]} Bxh3 {[%emt 0:00:39]} 15. Rxh3 {[%emt 0:00:20]} fxg5 {[%emt 0:00:21]} 16. hxg5 {[%emt 0:00:53]} Rf4 {[%emt 0:02:33]} 17. Rg3 {[%emt 0:11:58]} ({Predecessor:} 17. Rg1 Qe7 18. Kb1 Raf8 19. Bd1 a3 20. b4 Na6 21. b5 {½-½ (36) Chabanon,J (2458)-Degraeve,J (2586) Agen 2016}) 17... Qf8 {[%emt 0:08:04]} 18. Nb5 {[%emt 0:06:54]} Qf7 {[%emt 0:07:37]} 19. Rgg1 {[%emt 0:10:23]} ({Resist} 19. Bxf4 $6 exf4 20. Rgg1 a3 $11) 19... Nf8 {[%emt 0:05:38]} 20. Qc2 {[%emt 0:01:22]} Rh4 {[%emt 0:07:56]} 21. Rd2 {[%emt 0:00:27]} Rh2 {[%emt 0:10:20]} 22. Bd1 {[%emt 0:00:24]} Rxd2 {[%emt 0:01:05]} 23. Qxd2 {[%emt 0:00:07]} Qe7 {[%emt 0:03:13]} 24. Kb1 {[%emt 0:06:19]} c6 {[%emt 0:06:03]} 25. dxc6 {[%emt 0:08:36]} bxc6 {[%emt 0:00:03]} 26. Nxd6 {[%emt 0:00:06]} Nfe6 {[%emt 0:00:45]} 27. Nf5 $1 {[%emt 0:00:02]} Qc7 {[%emt 0:09:59]} (27... gxf5 $11 {remains equal.} 28. exf5 Rd8) 28. Nxg7 {[%emt 0:01:08]} Kxg7 {[%emt 0:00:01]} 29. Bc2 {[%emt 0:01:23]} Rd8 {[%emt 0:01:28]} 30. Qc3 {[%emt 0:00:01]} Nd4 {[%emt 0:00:32]} 31. Rd1 {[%emt 0:00:04]} Nce6 {[%emt 0:00:44]} 32. f4 {[%emt 0:02:03]} Nxc2 {[%emt 0:05:53]} 33. Kxc2 {[%emt 0:01:02]} Rxd1 {[%emt 0:00:04]} 34. Kxd1 {[%emt 0:00:04]} Qd7+ {[%emt 0:00:12]} 35. Ke1 {[%emt 0:01:00]} Nd4 {[%emt 0:00:06]} 36. fxe5 {[%emt 0:01:15]} c5 {[%emt 0:00:54]} 37. e6 {[%emt 0:00:21]} Qd6 {[%emt 0:00:19]} 38. Bxd4+ {[%emt 0:01:22]} cxd4 {[%emt 0:00:01]} 39. Qf3 {[%emt 0:00:34]} Qxe6 {[%emt 0:00:25]} 40. Qf4 {[%emt 0:00:00]} Qxc4 {[%emt 0:00:00]} 41. e5 {[%emt 0:13:25]} Qb4+ {[%emt 0:09:03]} 42. Kd1 {[%emt 0:02:20]} Qb6 {[%emt 0:00:25]} 43. e6 {[%emt 0:03:27]} Qxe6 {[%emt 0:01:06]} 44. Qxd4+ {[%emt 0:00:07]} Kg8 {[%emt 0:00:36]} 45. Qd8+ {[%emt 0:03:48]} Kf7 {[%emt 0:00:42]} 46. Qc7+ {[%emt 0:01:53]} Ke8 {[%emt 0:00:08]} 47. Qf4 {[%emt 0:02:14]} Qxa2 {[%emt 0:07:09]} 48. Qe5+ {[%emt 0:03:20]} Kf8 {[%emt 0:00:37]} 49. Qd6+ {[%emt 0:00:42]} Kg7 {[%emt 0:00:30]} 50. Qf6+ {[%emt 0:00:23]} Kh7 {[%emt 0:00:11]} 51. Qe7+ {[%emt 0:00:09]} Kg8 {[%emt 0:00:19]} 52. Qd8+ {[%emt 0:00:32]} Kg7 {[%emt 0:00:19]} 53. Qf6+ $11 {[%emt 0:00:18]} 1/2-1/2